bitfinex-derivatives/quotes_ETHF0:USTF0_20250126
["timestamp","ask_amount","ask_price","bid_price","bid_amount"]
[1737892656257,0.60362,3313.8,3313.7,1.09163]
[1737892656458,0.60361,3313.9,3313.8,0.60361]
[1737892658059,3.2078,3314.3,3313.7,0.488]
[1737892658355,0.60366,3313.6,3313.5,3.7073]
[1737892658659,0.60361,3313.9,3313.8,0.60361]
[1737892659760,3.2078,3314.3,3313.5,3.7073]
[1737892659962,0.60359,3314.0,3313.9,0.60359]
[1737892661460,1.50875,3314.5,3313.5,3.7073]
[1737892661660,0.60358,3314.1,3314.0,0.60357]
[1737892663060,1.3285,3314.6,3313.5,5.21646]
[1737892663461,0.60357,3314.1,3314.0,0.60358]
[1737892663761,1.3285,3314.6,3313.5,5.21646]
[1737892663961,0.60357,3314.1,3314.0,0.60358]
[1737892664259,0.60356,3314.2,3313.7,0.60364]
[1737892664461,0.60357,3314.1,3314.0,0.60357]
[1737892664761,1.3285,3314.6,3313.8,0.5024]
[1737892664964,0.60355,3314.2,3314.1,0.60356]
[1737892665465,1.3285,3314.6,3313.8,0.5024]
[1737892665659,0.60357,3314.1,3314.0,0.60358]
[1737892666563,0.60356,3314.2,3314.1,0.60356]
[1737892666864,1.3285,3314.6,3313.8,0.5024]
[1737892666865,0.60353,3314.3,3314.2,0.60353]
[1737892667359,0.60352,3314.4,3314.3,0.60352]
[1737892667657,1.0117,3314.6,3313.9,3.2078]
[1737892667961,0.6035,3314.5,3314.4,0.6035]
[1737892668163,0.6035,3314.5,3313.9,4.71678]
[1737892668164,1.0117,3314.6,3313.9,3.2078]
[1737892668356,0.60349,3314.5,3314.4,0.6035]
[1737892669261,1.0117,3314.6,3313.9,3.2078]
[1737892669462,0.60352,3314.4,3314.3,0.60352]
[1737892669766,0.60351,3314.5,3314.4,0.60351]
[1737892671157,0.4935,3314.6,3313.9,3.2078]
[1737892671360,0.60351,3314.4,3314.3,0.60352]
[1737892671560,0.4935,3314.6,3313.9,3.2078]
[1737892672063,0.60352,3314.4,3314.3,0.60352]
[1737892675566,0.60351,3314.5,3314.1,0.60357]
[1737892675768,0.60352,3314.4,3314.3,0.60352]
[1737892676668,0.6035,3314.5,3314.4,0.6035]
[1737892676871,0.4935,3314.6,3313.9,4.11307776]
[1737892677071,0.60349,3314.5,3314.4,0.60351]
[1737892677266,0.60353,3314.4,3314.2,0.60353]
[1737892677465,0.60353,3314.4,3314.3,1.10633]
[1737892680874,0.60349,3314.6,3314.5,0.60348]
[1737892684072,0.00452918,3314.7,3314.6,0.60348]
[1737892684671,0.60798918,3314.7,3314.6,0.60348]
[1737892684874,0.00452918,3314.7,3314.6,0.60348]
[1737892686477,0.60798918,3314.7,3314.6,0.60348]
[1737892687571,0.00452918,3314.7,3314.6,0.60348]
[1737892692174,0.00452918,3314.7,3314.6,0.60153155]
[1737892698889,0.00452918,3314.7,3314.6,41.40153155]
[1737892699682,0.60332,3315.5,3314.6,45.8]
[1737892699991,0.60332,3315.5,3315.4,0.60333]
[1737892700384,0.91971,3315.6,3315.5,0.60331]
[1737892701189,0.60331,3315.6,3315.5,0.60331]
[1737892701690,0.9999,3315.7,3315.6,0.60329]
[1737892702086,0.5026,3315.7,3315.6,0.60329]
[1737892702390,0.00299584,3315.9,3315.8,0.60326]
[1737892703990,0.60623584,3315.9,3315.8,0.60326]
[1737892704190,0.00299584,3315.9,3315.8,0.60326]
[1737892704490,0.60623584,3315.9,3315.8,0.60326]
[1737892704892,0.60333,3315.5,3315.4,0.60332]
[1737892705491,0.00299584,3315.9,3315.2,0.00452918]
[1737892705694,0.6033,3315.6,3315.5,0.60331]
[1737892705891,0.60328,3315.8,3315.7,0.60327]
[1737892706797,0.60624584,3315.9,3315.8,0.60326]
[1737892707192,0.00299584,3315.9,3315.8,0.60326]
[1737892709293,0.60623584,3315.9,3315.8,0.60326]
[1737892710402,0.00299584,3315.9,3315.8,0.60326]
[1737892711102,0.60623584,3315.9,3315.8,0.60326]
[1737892711503,0.60327,3315.8,3315.7,0.60326]
[1737892712100,0.00299584,3315.9,3315.5,3.2078]
[1737892712290,0.60329,3315.6,3315.5,3.2078]
[1737892712496,0.60329,3315.6,3315.5,3.81111]
[1737892712697,1.59599,3315.6,3315.5,3.2078]
[1737892713103,1.59599,3315.6,3315.5,3.81111]
[1737892714309,1.59599,3315.6,3315.5,3.2078]
[1737892714611,1.59599,3315.6,3315.5,3.81111]
[1737892714799,1.59599,3315.6,3315.5,3.2078]
[1737892714999,1.59599,3315.6,3315.5,3.81111]
[1737892717610,0.9927,3315.6,3315.5,3.81111]
[1737892717911,1.59599,3315.6,3315.5,3.81111]
[1737892718210,0.9927,3315.6,3315.5,3.81111]
[1737892718610,1.59599,3315.6,3315.5,3.81111]
[1737892719206,0.9927,3315.6,3315.5,3.81111]
[1737892720105,0.9927,3315.6,3315.5,44.61111]
[1737892723111,0.9927,3315.6,3315.5,3.81111]
[1737892723316,0.9927,3315.6,3315.2,0.51522918]
[1737892723517,0.60335,3315.4,3315.3,0.60333]
[1737892725217,0.91942,3315.5,3315.4,0.60333]
[1737892726517,0.5092,3315.6,3315.2,0.51522918]
[1737892726724,0.5092,3315.6,3315.5,0.60331]
[1737892727221,0.60625584,3315.9,3315.2,0.51522918]
[1737892727518,0.60625584,3315.9,3315.8,0.60326]
[1737892733120,0.00299584,3315.9,3315.6,0.9932]
[1737892733329,0.60328,3315.7,3315.6,1.59648]
[1737892733618,0.60328,3315.7,3315.6,1.10208]
[1737892735120,0.316,3315.8,3315.4,1.41436819]
[1737892735323,1.0827,3315.6,3315.5,0.6033]
[1737892739126,0.4794,3315.6,3315.4,1.90636819]
[1737892739422,1.08271,3315.6,3315.5,0.60331]
[1737892740728,0.60331,3315.5,3315.4,1.39686819]
[1737892740920,0.60331,3315.5,3315.4,2.00019819]
[1737892742723,0.60331,3315.5,3315.4,1.39686819]
[1737892747130,0.60331,3315.5,3315.4,0.90486819]
[1737892757338,0.60331,3315.5,3315.4,1.89086819]
[1737892760638,0.60331,3315.5,3315.4,1.40866819]
[1737892762341,0.60331,3315.5,3315.4,0.90486819]
[1737892785051,0.60331,3315.5,3315.4,1.50819819]
[1737892787462,0.60331,3315.5,3315.4,0.90486819]
[1737892796869,3.81111,3315.5,3315.4,0.90486819]
[1737892797161,3.81111,3315.5,3315.4,0.49979764]
[1737892797766,3.2078,3315.5,3314.6,0.9723]
[1737892797970,3.2078,3314.8,3314.5,0.5137]
[1737892798165,0.60348,3314.6,3314.5,0.5137]
[1737892802968,0.60353,3314.3,3314.2,1.00582918]
[1737892803364,0.60353,3314.3,3314.2,0.00452918]
[1737892803570,1.13033,3314.3,3314.2,0.00452918]
[1737892804360,1.44653,3314.3,3314.2,0.00452918]
[1737892804568,0.60358,3314.0,3313.9,0.90527776]
[1737892804777,3.81138,3314.0,3313.9,0.13592368]
[1737892804973,8.2078,3314.0,3313.1,4.73690959]
[1737892805165,3.81153,3313.2,3313.1,4.73690959]
[1737892805358,3.2078,3313.7,3313.1,4.73690959]
[1737892805669,0.00452918,3313.7,3313.2,0.5095]
[1737892805865,0.60368,3313.5,3313.2,1.11323]
[1737892806367,0.60371,3313.3,3313.2,0.5095]
[1737892806570,0.6037,3313.4,3313.2,0.5095]
[1737892807071,0.00452918,3313.7,3313.2,0.5095]
[1737892807373,0.60368,3313.5,3313.2,1.11322]
[1737892807763,0.60817918,3313.7,3313.4,0.60369]
[1737892807963,0.60366,3313.6,3313.5,1.0123]
[1737892811366,0.70054808,3313.3,3313.1,0.00452918]
[1737892811563,1.47291425,3313.2,3312.9,3.81158]
[1737892811762,0.86917425,3313.1,3312.9,1.73376149]
[1737892811979,0.86917425,3313.0,3312.5,3.2078]
[1737892812174,0.86917425,3312.9,3312.5,1.39554751]
[1737892812477,0.60374,3313.2,3312.9,0.60377]
[1737892812778,0.60375,3313.1,3312.9,0.60377]
[1737892814571,0.60375,3313.1,3313.0,1.5231]
[1737892817971,0.60375,3313.1,3313.0,1.0249]
[1737892818181,0.60375,3313.1,3313.0,1.00073631]
[1737892819879,3.2078,3313.3,3312.6,0.60383]
[1737892820068,3.81162,3312.7,3312.6,0.60383]
[1737892820273,3.2078,3312.7,3312.6,0.60383]
[1737892820878,3.2078,3312.7,3312.6,41.40383]
[1737892821270,3.81162,3312.7,3312.6,41.2753]
[1737892821879,3.81162,3312.7,3312.6,41.87914]
[1737892822080,3.81162,3312.7,3312.6,41.2753]
[1737892822481,3.81162,3312.7,3312.6,41.87914]
[1737892828287,3.2078,3312.7,3312.6,41.87914]
[1737892828683,3.2078,3312.7,3312.6,1.07914]
[1737892829587,3.2078,3312.7,3312.6,41.87914]
[1737892833488,3.2078,3312.7,3312.6,41.40384]
[1737892834893,3.2078,3312.7,3312.5,0.9705]
[1737892835891,3.81162,3312.7,3312.6,0.60384]
[1737892836092,4.31292,3312.7,3312.6,0.60384]
[1737892836485,3.7091,3312.7,3312.5,0.4887]
[1737892836690,0.60384,3312.6,3312.5,1.09255]
[1737892836889,0.60384,3312.6,3312.5,41.89255]
[1737892838492,0.60384,3312.6,3312.5,41.2887]
[1737892838798,0.60386,3312.5,3312.4,0.60839918]
[1737892839097,0.60386,3312.5,3312.4,41.40839918]
[1737892839489,0.60386,3312.5,3312.4,40.80452918]
[1737892841292,0.60386,3312.5,3312.4,0.00452918]
[1737892841899,0.60386,3312.5,3312.4,0.00372918]
[1737892842599,0.60386,3312.5,3312.4,0.00292918]
[1737892846399,3.81166,3312.5,3312.4,0.00292918]
[1737892847108,3.2078,3312.5,3312.0,0.5118]
[1737892847301,3.2078,3312.1,3312.0,0.5118]
[1737892848106,3.2078,3312.1,3312.0,41.3118]
[1737892848302,3.2078,3312.1,3312.0,41.91575]
[1737892851695,3.2078,3312.1,3312.0,0.60395]
[1737892852304,3.81173,3312.1,3312.0,0.60395]
[1737892852704,3.2078,3312.1,3311.7,42.61628748]
[1737892852905,1.60306,3312.0,3311.9,0.60395]
[1737892853701,0.60399,3311.8,3311.7,1.81628748]
[1737892854503,0.60399,3311.8,3311.7,1.02558748]
[1737892854706,0.60399,3311.8,3311.7,0.00809908]
[1737892855005,0.60399,3311.8,3311.3,4.73690959]
[1737892855006,0.60406,3311.4,3311.3,4.73690959]
[1737892855200,3.2078,3311.4,3311.1,4.73690959]
[1737892855400,0.6041,3311.2,3311.1,4.73690959]
[1737892858011,1.1079,3311.2,3311.1,4.73690959]
[1737892858205,1.6047,3311.2,3311.1,4.73690959]
[1737892859010,1.6047,3311.2,3310.9,7.62156438]
[1737892859011,0.60413,3311.0,3310.9,0.5162]
[1737892859209,0.60413,3311.0,3310.8,0.60868918]
[1737892859210,3.81193,3311.0,3310.8,0.60868918]
[1737892859407,3.2078,3311.0,3310.9,0.60415]
[1737892861702,3.2078,3311.0,3310.9,41.40415]
[1737892864399,0.00452918,3311.5,3311.4,0.60406]
[1737892865203,0.00452918,3311.5,3311.4,41.40406]
[1737892867511,0.00452918,3311.5,3311.4,41.89036]
[1737892868714,0.53122918,3311.5,3311.4,0.60406]
[1737892869412,1.03222918,3311.5,3311.4,0.60406]
[1737892869613,1.63626918,3311.5,3311.4,0.60406]
[1737892870008,1.63626918,3311.5,3311.3,0.60408]
[1737892870009,0.60406,3311.4,3311.3,0.60408]
[1737892870615,0.60406,3311.4,3311.2,1.09578]
[1737892870806,0.60406,3311.4,3311.3,0.60408]
[1737892871613,2.14797918,3311.5,3311.3,0.60408]
[1737892871917,1.54392918,3311.5,3311.4,0.60406]
[1737892872409,1.03222918,3311.5,3311.4,0.51770818]
[1737892872616,0.53122918,3311.5,3311.4,0.51770818]
[1737892873707,0.00452918,3311.5,3311.4,0.51770818]
[1737892875409,0.52292918,3311.5,3311.4,0.51770818]
[1737892884513,0.00452918,3311.5,3311.4,0.51770818]
[1737892888525,1.53132918,3311.5,3311.4,0.51770818]
[1737892889413,1.53132918,3311.5,3311.4,0.43197804]
[1737892890323,1.53132918,3311.5,3311.0,0.9976]
[1737892891019,1.53132918,3311.5,3311.4,0.60406]
[1737892895814,1.02872918,3311.5,3311.4,0.60406]
[1737892897620,1.63276918,3311.5,3311.4,0.48897388]
[1737892897818,1.02872918,3311.5,3311.4,0.48897388]
[1737892898330,1.54052918,3311.5,3311.4,0.48897388]
[1737892899122,2.14456918,3311.5,3311.4,0.48897388]
[1737892901622,2.14456918,3311.5,3310.9,2.00646]
[1737892901830,2.14456918,3311.5,3311.3,0.60407]
[1737892902024,1.54052918,3311.5,3311.3,0.60407]
[1737892902219,1.54052918,3311.5,3311.2,0.60409]
[1737892902529,1.54052918,3311.5,3310.8,41.32112918]
[1737892902530,0.6041,3311.2,3310.8,41.32112918]
[1737892902830,1.09072,3311.1,3310.9,0.60415]
[1737892903031,0.9932,3311.0,3310.9,0.60415]
[1737892903726,0.9932,3311.0,3310.7,3.68334729]
[1737892904425,0.9932,3311.0,3310.7,2.20967277]
[1737892904631,0.9932,3311.0,3310.9,0.60413]
[1737892905529,0.9932,3311.0,3310.9,0.46194591]
[1737892907428,0.60416,3310.9,3310.7,0.60418]
[1737892907628,0.9932,3311.0,3310.3,3.2078]
[1737892907836,0.9932,3311.0,3310.4,0.60424]
[1737892907837,0.60417,3310.8,3310.4,0.60424]
[1737892908030,0.60417,3310.9,3310.7,0.60419]
[1737892908431,3.81198,3310.8,3310.6,0.6042]
[1737892908731,3.2078,3310.8,3310.7,0.60419]
[1737892909628,3.2078,3310.8,3310.7,0.4818332]
[1737892910329,3.81198,3310.8,3310.6,0.60419]
[1737892910524,0.60424,3310.4,3310.2,0.60428]
[1737892910732,0.5062,3310.3,3310.2,0.60428]
[1737892910932,1.5146,3310.3,3310.2,0.60428]
[1737892911434,0.6043,3310.1,3309.8,2.94693173]
[1737892911632,0.6043,3310.1,3309.8,3.55127173]
[1737892912436,1.5146,3310.3,3309.6,0.90645395]
[1737892912625,1.5146,3310.3,3309.8,0.60435]
[1737892912626,0.60432,3310.0,3309.8,0.60435]
[1737892912833,0.60432,3310.0,3309.7,0.60436]
[1737892913239,0.60436,3309.8,3309.6,0.90645395]
[1737892913432,0.9981,3309.7,3309.6,0.90645395]
[1737892913632,1.5015,3309.7,3309.6,0.90645395]
[1737892914233,2.10587,3309.7,3309.6,0.90645395]
[1737892914436,2.10587,3309.7,3309.6,1.35506362]
[1737892914437,1.019,3309.7,3309.6,1.35506362]
[1737892919042,3.2078,3309.8,3309.6,0.75067362]
[1737892919345,4.33138,3310.2,3310.1,0.6043]
[1737892920043,4.33138,3310.2,3309.7,0.9732]
[1737892920244,4.33138,3310.2,3310.0,0.6043]
[1737892920647,3.7271,3310.2,3310.0,0.6043]
[1737892920847,0.6043,3310.1,3309.9,0.60432]
[1737892921346,0.6043,3310.1,3309.7,0.9732]
[1737892921550,3.2078,3309.8,3309.7,1.57756]
[1737892921746,3.81215,3309.8,3309.7,0.9732]
[1737892922247,3.81215,3309.8,3309.7,1.57757]
[1737892922551,3.81215,3309.8,3309.7,0.4902]
[1737892923753,3.81215,3309.8,3309.7,1.09457]
[1737892923954,3.81215,3309.8,3309.7,0.4902]
[1737892926838,3.2078,3309.8,3309.7,0.4902]
[1737892927043,3.2078,3309.8,3309.7,1.09457]
[1737892927243,3.7344,3309.8,3309.7,1.09457]
[1737892927646,3.2078,3309.8,3309.7,1.59577]
[1737892928753,3.2078,3310.2,3310.1,0.6043]
[1737892929249,3.81208,3310.2,3310.1,0.6043]
[1737892929752,3.81208,3310.2,3309.8,0.4872]
[1737892929955,0.6043,3310.1,3310.0,0.60431]
[1737892932653,3.2078,3310.2,3309.8,0.4872]
[1737892932955,0.6043,3310.1,3310.0,0.6043]
[1737892934653,3.2078,3310.2,3310.1,0.6043]
[1737892934955,3.81208,3310.2,3310.1,0.6043]
[1737892935754,3.2078,3310.2,3310.1,0.6043]
[1737892936353,4.3189,3310.6,3310.5,0.60422]
[1737892936658,0.60423,3310.5,3310.4,0.60423]
[1737892936958,0.60423,3310.5,3310.4,0.50549022]
[1737892938558,4.31892,3310.6,3310.5,0.60422]
[1737892938956,4.31892,3310.6,3310.5,0.48081325]
[1737892939358,1.11112,3310.6,3310.5,0.48081325]
[1737892941158,0.5069,3310.6,3310.5,0.48081325]
[1737892941554,1.1111,3310.6,3310.5,0.48081325]
[1737892941856,0.5069,3310.6,3310.5,0.48081325]
[1737892942652,1.1111,3310.6,3310.5,0.48081325]
[1737892943354,0.5069,3310.6,3309.9,3.2078]
[1737892943557,3.2078,3310.3,3309.7,0.4902]
[1737892943854,0.60433,3310.0,3309.9,0.60433]
[1737892944452,0.60433,3310.0,3309.8,0.5208]
[1737892944652,0.60433,3310.0,3309.9,0.60433]
[1737892945661,3.2078,3310.3,3309.9,0.4564479]
[1737892945961,0.60431,3310.1,3309.9,0.4564479]
[1737892946158,0.60432,3310.0,3309.8,1.12514]
[1737892946359,1.11472,3310.0,3309.8,1.12514]
[1737892946755,0.5104,3310.0,3309.8,0.5208]
[1737892947055,0.5104,3310.0,3309.9,0.60433]
[1737892959267,0.5104,3310.0,3309.9,0.48081946]
[1737892967875,0.5104,3310.0,3309.9,0.36739129]
[1737892978302,3.2078,3310.2,3309.8,1.0022]
[1737892978492,3.2078,3310.2,3310.1,0.6043]
[1737892980898,0.9594,3310.5,3310.4,0.60424]
[1737892981494,0.4837,3310.5,3310.4,0.60424]
[1737892981695,0.9789,3310.5,3310.4,0.60424]
[1737892984596,0.4837,3310.5,3310.4,0.60424]
[1737892984791,3.81201,3310.6,3309.9,44.0078]
[1737892984992,0.5021,3310.7,3309.9,44.0078]
[1737892985198,1.1063,3310.7,3310.6,0.6042]
[1737892985895,0.60422,3310.6,3310.5,0.60421]
[1737892987702,0.5021,3310.7,3310.3,0.4992]
[1737892987904,0.60422,3310.6,3310.5,0.60422]
[1737892988105,0.60424,3310.5,3310.4,0.60423]
[1737892988802,1.12574,3310.5,3310.4,0.46358315]
[1737892989700,0.5215,3310.5,3310.3,0.4992]
[1737892989902,0.60424,3310.4,3310.3,1.10345]
[1737892990408,1.12573,3310.5,3310.4,0.60424]
[1737892990705,1.12573,3310.5,3310.3,0.4992]
[1737892990706,1.12573,3310.5,3310.3,1.10345]
[1737892991908,0.60424,3310.4,3310.3,1.10345]
[1737892992909,0.5215,3310.5,3310.3,1.10345]
[1737892992910,1.12573,3310.5,3310.3,1.10345]
[1737892993908,1.12573,3310.5,3310.4,0.60424]
[1737892994108,1.12573,3310.5,3310.3,1.10345]
[1737892994804,0.5215,3310.5,3310.4,0.60424]
[1737892995509,0.5215,3310.5,3310.4,0.60602989]
[1737892996005,0.5215,3310.5,3310.4,0.00178989]
[1737892996206,1.12572,3310.5,3310.4,0.00178989]
[1737892997105,1.12572,3310.5,3310.4,0.60602989]
[1737892997911,0.5215,3310.5,3310.4,0.60602989]
[1737893000706,1.12572,3310.5,3310.4,0.60602989]
[1737893002414,1.12572,3310.5,3310.4,0.02162175]
[1737893002610,1.12572,3310.5,3310.3,0.4992]
[1737893002911,1.12572,3310.5,3310.4,0.60424]
[1737893003412,0.5215,3310.5,3310.4,0.60424]
[1737893003612,1.12572,3310.5,3310.4,0.60424]
[1737893003917,1.12572,3310.5,3310.4,0.41691838]
[1737893004109,0.5215,3310.5,3310.4,0.41691838]
[1737893004315,1.12572,3310.5,3310.4,0.41691838]
[1737893004615,0.5215,3310.5,3310.4,0.41691838]
[1737893004917,1.12572,3310.5,3310.4,0.41691838]
[1737893006412,1.12572,3310.5,3310.4,1.32315327]
[1737893010621,1.12572,3310.5,3310.4,0.90623489]
[1737893011714,1.12572,3310.5,3310.4,1.51047489]
[1737893012513,1.12572,3310.5,3310.2,1.0043]
[1737893012816,1.12572,3310.5,3310.4,0.60424]
[1737893014124,1.12572,3310.5,3310.3,0.60425]
[1737893014327,1.12572,3310.5,3310.4,0.60424]
[1737893019431,0.60424,3310.4,3310.3,0.60425]
[1737893020027,0.60431,3310.0,3309.9,3.2078]
[1737893020226,0.60434,3309.9,3309.7,0.60436]
[1737893020422,1.12455,3309.8,3309.6,8.99580041]
[1737893021330,1.12455,3309.8,3309.6,7.88332041]
[1737893021331,0.60437,3309.7,3309.6,7.88332041]
[1737893022525,0.60437,3309.7,3309.6,6.1825968]
[1737893023933,0.5202,3309.8,3309.5,1.51088134]
[1737893024133,0.60439,3309.6,3309.5,1.51088134]
[1737893024836,0.5202,3309.8,3309.5,0.90648134]
[1737893025027,0.5202,3309.8,3309.7,0.60437]
[1737893025232,1.12456,3309.8,3309.6,2.09018]
[1737893026137,1.12456,3309.8,3309.6,1.58778]
[1737893026743,1.12456,3309.8,3309.7,0.60437]
[1737893027244,0.5202,3309.8,3309.7,0.60437]
[1737893027437,1.12455,3309.8,3309.7,0.60437]
[1737893029641,0.5202,3309.8,3309.7,0.60437]
[1737893032848,0.5202,3309.8,3309.7,0.44549495]
[1737893040848,3.2078,3310.1,3310.0,0.60431]
[1737893041843,0.5264,3310.4,3310.3,0.60426]
[1737893042151,0.5025,3310.6,3310.5,0.60422]
[1737893042361,1.0289,3310.6,3310.5,0.60422]
[1737893042650,0.5264,3310.6,3310.5,0.60422]
[1737893043957,0.5264,3310.6,3310.5,0.444678]
[1737893053961,0.5264,3310.6,3310.5,0.32914273]
[1737893060868,1.1306,3310.6,3310.5,0.32914273]
[1737893061172,1.1306,3310.6,3310.5,1.23535025]
[1737893061362,0.5264,3310.6,3310.5,1.23535025]
[1737893064567,1.1306,3310.6,3310.5,1.23535025]
[1737893065172,0.5264,3310.6,3310.5,1.23535025]
[1737893065373,1.1306,3310.6,3310.5,1.23535025]
[1737893068873,1.1306,3310.6,3310.5,0.90620752]
[1737893069875,1.1306,3310.6,3310.5,1.51042752]
[1737893072976,0.5264,3310.6,3310.5,1.51042752]
[1737893085382,1.1306,3310.6,3310.5,0.90620752]
[1737893086388,1.1306,3310.6,3310.5,0.50419651]
[1737893094294,4.3384,3310.6,3310.5,0.50419651]
[1737893096898,1.1306,3310.6,3310.5,0.50419651]
[1737893097394,1.1306,3310.6,3310.5,0.21978415]
[1737893101202,1.1306,3310.6,3310.5,0.17462095]
[1737893105103,1.1306,3310.6,3310.5,0.77884095]
[1737893105299,1.1306,3310.6,3310.5,0.17462095]
[1737893112122,1.1306,3310.6,3310.5,0.13894673]
[1737893113414,1.1306,3310.6,3310.0,7.9585424]
[1737893113620,0.5047,3310.5,3310.0,7.49664146]
[1737893114517,0.60425,3310.4,3310.2,0.60427]
[1737893114718,0.4864,3310.3,3310.2,0.60427]
[1737893116919,0.60428,3310.2,3309.9,5.2663424]
[1737893117120,0.6043,3310.1,3309.8,5.3550924]
[1737893117317,0.60433,3309.9,3309.8,4.7507424]
[1737893120221,0.60436,3309.8,3309.6,0.60438]
[1737893120422,1.59456,3309.8,3309.6,0.60438]
[1737893120627,1.59456,3309.8,3309.6,0.60439]
[1737893121519,1.59456,3309.8,3309.5,0.90648134]
[1737893121520,0.9902,3309.8,3309.7,0.60437]
[1737893122024,0.9902,3309.8,3309.5,0.90648134]
[1737893122325,0.60437,3309.7,3309.6,0.60438]
[1737893122716,0.9902,3309.8,3309.5,0.90648134]
[1737893123024,1.59456,3309.8,3309.7,0.60437]
[1737893123523,1.59456,3309.8,3309.5,0.71831203]
[1737893123724,0.9902,3309.8,3309.7,0.60437]
[1737893124223,1.59455,3309.8,3309.7,0.60437]
[1737893124826,0.9902,3309.8,3309.7,0.60437]
[1737893125027,1.59455,3309.8,3309.5,0.71831203]
[1737893125226,1.59455,3309.8,3309.6,0.60438]
[1737893126325,1.59455,3309.8,3309.7,0.60437]
[1737893127233,0.9902,3309.8,3309.7,0.60437]
[1737893128037,1.59455,3309.8,3309.5,0.71831203]
[1737893128228,1.59455,3309.8,3309.6,0.60438]
[1737893130927,1.59455,3309.8,3309.7,0.60437]
[1737893133531,1.59455,3309.8,3309.7,0.41777888]
[1737893133742,0.9902,3309.8,3309.5,0.71831203]
[1737893134034,0.60437,3309.7,3309.6,0.60438]
[1737893135232,0.9902,3309.8,3309.5,0.71831203]
[1737893135233,0.60439,3309.6,3309.5,0.71831203]
[1737893136040,0.60439,3309.6,3309.5,0.50390307]
[1737893138133,0.9902,3309.8,3309.5,0.50390307]
[1737893138333,0.60439,3309.7,3309.6,0.60438]
[1737893138636,0.60439,3309.6,3309.5,1.10829307]
[1737893143339,4.198,3309.8,3309.5,0.50390307]
[1737893143542,4.80236,3309.8,3309.7,0.60437]
[1737893144345,4.80236,3309.8,3309.6,1.08658]
[1737893144849,0.60437,3309.7,3309.6,0.74842919]
[1737893145545,4.80236,3309.8,3309.7,0.60437]
[1737893145845,4.80236,3309.8,3309.7,1.09437]
[1737893146148,4.80236,3309.8,3309.7,0.49]
[1737893146644,4.198,3309.8,3309.7,1.09437]
[1737893147945,4.80235,3309.8,3309.7,1.09437]
[1737893148942,4.80235,3309.8,3309.7,0.49]
[1737893150549,4.80235,3309.8,3309.7,1.09437]
[1737893151046,4.80235,3309.8,3309.7,0.49]
[1737893152453,4.80235,3309.8,3309.7,1.09437]
[1737893152750,4.80235,3309.8,3309.7,0.49]
[1737893153749,4.80235,3309.8,3309.7,0.36674366]
[1737893155454,4.80235,3309.8,3309.7,0.97111366]
[1737893155954,4.80235,3309.8,3309.7,0.36674366]
[1737893156749,4.198,3309.8,3309.7,0.97111366]
[1737893156956,3.2078,3309.8,3309.7,0.97111366]
[1737893157155,3.2078,3309.8,3309.7,1.35731366]
[1737893159358,3.81215,3309.8,3309.7,0.97111366]
[1737893159561,4.29995,3309.8,3309.7,0.97111366]
[1737893160058,4.29995,3309.8,3309.6,0.60437]
[1737893160459,3.6956,3309.8,3309.6,0.60437]
[1737893160759,0.60438,3309.7,3309.6,0.60439]
[1737893161059,0.60439,3309.6,3309.5,1.10830307]
[1737893161457,1.12999,3309.6,3309.5,1.10830307]
[1737893162957,0.5256,3309.6,3309.5,1.10830307]
[1737893163153,1.12999,3309.6,3309.5,1.10830307]
[1737893163463,0.5256,3309.6,3309.5,1.10830307]
[1737893169266,0.5256,3309.6,3309.5,0.77260642]
[1737893170265,0.5067,3309.7,3309.6,0.60439]
[1737893171366,3.6956,3309.8,3309.5,0.16820642]
[1737893171666,3.6956,3309.8,3309.7,0.60437]
[1737893171965,3.6956,3309.8,3309.7,41.40437]
[1737893172458,0.4878,3309.8,3309.7,41.40437]
[1737893172658,0.4878,3309.8,3309.7,41.88047]
[1737893173156,0.4878,3309.8,3309.7,1.08047]
[1737893173566,0.4947,3310.2,3309.7,1.08047]
[1737893173865,0.5114,3310.1,3310.0,0.60431]
[1737893176961,1.1157,3310.1,3310.0,0.60431]
[1737893178866,0.5114,3310.1,3310.0,0.60431]
[1737893179366,0.5114,3310.1,3310.0,0.43213769]
[1737893180561,0.5114,3310.1,3309.7,0.4761]
[1737893180761,1.1157,3310.1,3309.9,0.60432]
[1737893181168,0.5114,3310.1,3309.7,0.4761]
[1737893181356,0.5114,3310.1,3310.0,0.60431]
[1737893182266,1.1157,3310.1,3310.0,0.60431]
[1737893182670,1.1157,3310.1,3310.0,0.90634441]
[1737893184974,1.1157,3310.1,3310.0,1.51065441]
[1737893185765,1.1157,3310.1,3310.0,0.90634441]
[1737893187870,1.1157,3310.1,3310.0,0.11544441]
[1737893188065,0.60439,3309.6,3309.5,0.16820642]
[1737893189476,0.60439,3309.6,3309.5,0.1148037]
[1737893191175,1.10479,3309.6,3309.5,0.1148037]
[1737893203093,1.10479,3309.6,3309.5,0.07992438]
[1737893205688,1.10479,3309.6,3309.5,0.0525799]
[1737893213094,1.10479,3309.6,3309.4,0.47132473]
[1737893214798,1.1048,3309.6,3309.4,0.60441]
[1737893217103,1.1048,3309.6,3309.5,0.4926]
[1737893217297,1.1048,3309.6,3309.5,1.09701]
[1737893217502,1.1048,3309.6,3309.5,0.4926]
[1737893219503,1.1048,3309.6,3309.4,0.60441]
[1737893223102,1.1048,3309.6,3309.4,0.26667122]
[1737893227207,0.5004,3309.6,3309.4,0.60442]
[1737893227712,0.5004,3309.6,3309.5,0.60441]
[1737893227901,0.5004,3309.6,3309.5,0.40033804]
[1737893228208,1.10479,3309.6,3309.4,0.60441]
[1737893228512,0.60439,3309.6,3309.4,0.60441]
[1737893230212,0.60439,3309.6,3309.3,1.11373]
[1737893230409,1.09219,3309.6,3309.3,1.11373]
[1737893231113,1.09219,3309.6,3309.4,0.60442]